fUST/lending_fUST_20250902
["ID","MTS","AMOUNT","RATE_DAILY","PERIOD"]
[383015096,1756807493984,-159.065872,0.00013699,2]
[383015097,1756807494007,-159.065872,0.00013699,2]
[383015098,1756807494028,-159.06587616,0.00013699,2]
[383015099,1756807494051,-151.0,0.00013699,2]
[383015100,1756807494075,-151.0,0.00013699,2]
[383015101,1756807494098,-151.0,0.00013699,2]
[383015102,1756807494120,-151.0,0.00013699,2]
[383015103,1756807494142,-151.0,0.00013699,2]
[383015104,1756807494165,-151.0,0.00013699,2]
[383015105,1756807494188,-151.0,0.00013699,2]
[383015106,1756807494209,-211.804704,0.00013699,2]
[383015107,1756807494231,-194.513534,0.00013699,2]
[383015108,1756807494254,-441.94363,0.00013699,2]
[383015109,1756807494277,-441.94363,0.00013699,2]
[383015110,1756807494299,-441.94363,0.00013699,2]
[383015111,1756807494320,-441.94363,0.00013699,2]
[383015112,1756807494354,-441.94363,0.00013699,2]
[383015113,1756807494378,-441.94363,0.00013699,2]
[383015114,1756807494400,-441.94363,0.00013699,2]
[383015115,1756807494423,-441.943629,0.00013699,2]
[383015116,1756807494445,-151.0,0.00013699,2]
[383015117,1756807494468,-151.0,0.00013699,2]
[383015118,1756807494491,-298.56818,0.00013699,2]
[383015119,1756807494515,-151.0,0.00013699,2]
[383015120,1756807494539,-151.0,0.00013699,2]
[383015121,1756807494561,-151.0,0.00013699,2]
[383015122,1756807494585,-151.0,0.00013699,2]
[383015123,1756807494607,-151.0,0.00013699,2]
[383015124,1756807494630,-151.0,0.00013699,2]
[383015125,1756807494653,-163.361452,0.00013699,2]
[383015126,1756807494677,-163.361452,0.00013699,2]
[383015127,1756807494701,-163.361452,0.00013699,2]
[383015128,1756807494725,-163.361444,0.00013699,2]
[383015129,1756807494748,-679.36099989,0.00013735,2]
[383015130,1756807494771,-1156.37158673,0.00013747,2]
[383015131,1756807494794,-679.36099989,0.00013872,2]
[383015132,1756807494817,-3573.95560383,0.0001394,2]
[383015133,1756807494844,-300.0,0.00013971,2]
[383015134,1756807494869,-300.0,0.00013971,2]
[383015135,1756807494895,-300.0,0.00013971,2]
[383015136,1756807494920,-300.0,0.00013971,2]
[383015137,1756807494945,-300.0,0.00013971,2]
[383015138,1756807494971,-300.0,0.00013971,2]
[383015139,1756807495000,-300.0,0.00013971,2]
[383015140,1756807495026,-300.0,0.00013971,2]
[383015141,1756807495053,-300.0,0.00013971,2]
[383015142,1756807495079,-300.0,0.00013971,2]
[383015143,1756807495105,-300.0,0.00013971,2]
[383015144,1756807495132,-300.0,0.00013971,2]
[383015145,1756807495157,-300.0,0.00013971,2]
[383015146,1756807495183,-300.0,0.00013971,2]
[383015147,1756807495209,-300.0,0.00013971,2]
[383015148,1756807495237,-600.0,0.00013971,2]
[383015149,1756807495262,-151.0,0.00013972,2]
[383015150,1756807495285,-151.0,0.00013972,2]
[383015151,1756807495309,-151.0,0.00013972,2]
[383015152,1756807495332,-500.0,0.00013972,2]
[383015153,1756807495355,-227.45247062,0.00013972,2]
[383015154,1756807495377,-151.0,0.00013972,2]
[383015155,1756807495399,-151.0,0.00013972,2]
[383015156,1756807495423,-151.0,0.00013972,2]
[383015157,1756807495446,-151.0,0.00013972,2]
[383015158,1756807495471,-480.0,0.00013972,2]
[383015159,1756807495494,-480.0,0.00013972,2]
[383015160,1756807495521,-372.73,0.00013972,2]
[383015161,1756807495545,-480.0,0.00013972,2]
[383015162,1756807495569,-338.68950928,0.00013972,2]
[383015163,1756807495594,-480.0,0.00013972,2]
[383015164,1756807495619,-480.0,0.00013972,2]
[383015165,1756807495645,-270.53,0.00013972,2]
[383015166,1756807495670,-480.0,0.00013972,2]
[383015167,1756807495694,-480.0,0.00013972,2]
[383015168,1756807495719,-480.0,0.00013972,2]
[383015169,1756807495746,-480.0,0.00013972,2]
[383015170,1756807495769,-480.0,0.00013972,2]
[383015171,1756807495793,-264.05,0.00013972,2]
[383015172,1756807495817,-480.0,0.00013972,2]
[383015173,1756807495841,-480.0,0.00013972,2]
[383015174,1756807495864,-493.22,0.00013972,2]
[383015175,1756807495889,-480.0,0.00013972,2]
[383015176,1756807495912,-480.0,0.00013972,2]
[383015177,1756807495935,-480.0,0.00013972,2]
[383015178,1756807495959,-480.0,0.00013972,2]
[383015179,1756807495981,-480.0,0.00013972,2]
[383015180,1756807496006,-480.0,0.00013972,2]
[383015181,1756807496028,-480.0,0.00013972,2]
[383015182,1756807496052,-480.0,0.00013972,2]
[383015183,1756807496076,-480.0,0.00013972,2]
[383015184,1756807496101,-480.0,0.00013972,2]
[383015185,1756807496124,-180.62,0.00013972,2]
[383015186,1756807496147,-480.0,0.00013972,2]
[383015187,1756807496171,-2010.07,0.00013972,2]
[383015188,1756807496195,-198.72,0.00013972,2]
[383015189,1756807496218,-480.0,0.00013972,2]
[383015190,1756807496242,-480.0,0.00013972,2]
[383015191,1756807496267,-480.0,0.00013972,2]
[383015192,1756807496295,-480.0,0.00013972,2]
[383015193,1756807496461,-480.0,0.00013972,2]
[383015194,1756807496486,-480.0,0.00013972,2]
[383015195,1756807496509,-480.0,0.00013972,2]
[383015196,1756807496532,-480.0,0.00013972,2]
[383015197,1756807496554,-480.0,0.00013972,2]
[383015198,1756807496577,-480.0,0.00013972,2]
[383015199,1756807496599,-480.0,0.00013972,2]
[383015200,1756807496622,-480.0,0.00013972,2]
[383015201,1756807496644,-480.0,0.00013972,2]
[383015202,1756807496666,-480.0,0.00013972,2]
[383015203,1756807496688,-480.0,0.00013972,2]
[383015204,1756807496711,-480.0,0.00013972,2]
[383015205,1756807496732,-480.0,0.00013972,2]
[383015206,1756807496754,-480.0,0.00013972,2]
[383015207,1756807496776,-480.0,0.00013972,2]
[383015208,1756807496801,-480.0,0.00013972,2]
[383015209,1756807496823,-480.0,0.00013972,2]
[383015210,1756807496847,-480.0,0.00013972,2]
[383015211,1756807496871,-480.0,0.00013972,2]
[383015212,1756807496895,-480.0,0.00013972,2]
[383015213,1756807496917,-480.0,0.00013972,2]
[383015214,1756807496941,-480.0,0.00013972,2]
[383015215,1756807496964,-480.0,0.00013972,2]
[383015216,1756807496987,-511.81,0.00013972,2]
[383015217,1756807497014,-480.0,0.00013972,2]
[383015218,1756807497037,-480.0,0.00013972,2]
[383015219,1756807497060,-497.79,0.00013972,2]
[383015220,1756807497082,-480.0,0.00013972,2]
[383015221,1756807497106,-739.1,0.00013972,2]
[383015222,1756807497131,-480.0,0.00013972,2]
[383015223,1756807497156,-1166.27,0.00013972,2]
[383015224,1756807497179,-480.0,0.00013972,2]
[383015225,1756807497202,-480.0,0.00013972,2]
[383015226,1756807497224,-480.0,0.00013972,2]
[383015227,1756807497246,-480.0,0.00013972,2]
[383015228,1756807497269,-480.0,0.00013972,2]
[383015229,1756807497293,-480.0,0.00013972,2]
[383015230,1756807497317,-480.0,0.00013972,2]
[383015231,1756807497341,-494.33,0.00013972,2]
[383015232,1756807497364,-575.7,0.00013972,2]
[383015233,1756807497386,-480.0,0.00013972,2]
[383015234,1756807497411,-534.57,0.00013972,2]
[383015235,1756807497434,-480.0,0.00013972,2]
[383015236,1756807497458,-480.0,0.00013972,2]
[383015237,1756807497481,-480.0,0.00013972,2]
[383015238,1756807497504,-480.0,0.00013972,2]
[383015239,1756807497530,-483.37474943,0.00013972,2]
[383015240,1756807497557,-480.0,0.00013972,2]
[383015241,1756807497580,-480.0,0.00013972,2]
[383015242,1756807497603,-480.0,0.00013972,2]
[383015243,1756807497627,-194.26412781,0.00013972,2]
[383015244,1756807497651,-480.0,0.00013972,2]
[383015245,1756807497675,-2034.46,0.00013972,2]
[383015246,1756807497699,-264.15,0.00013972,2]
[383015247,1756807497724,-567.29,0.00013972,2]
[383015248,1756807497746,-480.0,0.00013972,2]
[383015249,1756807497768,-480.0,0.00013972,2]
[383015250,1756807497791,-343.79,0.00013972,2]
[383015251,1756807497814,-480.0,0.00013972,2]
[383015252,1756807497845,-480.0,0.00013972,2]
[383015253,1756807497869,-480.0,0.00013972,2]
[383015254,1756807497894,-216.17280715,0.00013972,2]
[383015255,1756807497920,-708.13,0.00013972,2]
[383015256,1756807497943,-480.0,0.00013972,2]
[383015257,1756807497967,-480.0,0.00013972,2]
[383015258,1756807497992,-480.0,0.00013972,2]
[383015259,1756807498019,-480.0,0.00013972,2]
[383015260,1756807498039,-224.76,0.00013972,2]
[383015261,1756807498061,-480.0,0.00013972,2]
[383015262,1756807498085,-1283.8,0.00013972,2]
[383015263,1756807498108,-480.0,0.00013972,2]
[383015264,1756807498129,-480.0,0.00013972,2]
[383015265,1756807498152,-474.15,0.00013972,2]
[383015266,1756807498176,-480.0,0.00013972,2]
[383015267,1756807498200,-480.0,0.00013972,2]
[383015268,1756807498225,-480.0,0.00013972,2]
[383015269,1756807498249,-480.0,0.00013972,2]
[383015270,1756807498271,-480.0,0.00013972,2]
[383015271,1756807498296,-453.32,0.00013972,2]
[383015272,1756807498321,-480.0,0.00013972,2]
[383015273,1756807498344,-480.0,0.00013972,2]
[383015274,1756807498366,-480.0,0.00013972,2]
[383015275,1756807498388,-480.0,0.00013972,2]
[383015276,1756807498410,-480.0,0.00013972,2]
[383015277,1756807498434,-480.0,0.00013972,2]
[383015278,1756807498458,-480.0,0.00013972,2]
[383015279,1756807498480,-480.0,0.00013972,2]
[383015280,1756807498504,-480.0,0.00013972,2]
[383015281,1756807498528,-480.0,0.00013972,2]
[383015282,1756807498553,-320.06,0.00013972,2]
[383015283,1756807498576,-480.0,0.00013972,2]
[383015284,1756807498598,-762.52,0.00013972,2]
[383015285,1756807498626,-480.0,0.00013972,2]
[383015286,1756807498650,-548.9,0.00013972,2]
[383015287,1756807498674,-480.0,0.00013972,2]
[383015288,1756807498699,-480.0,0.00013972,2]
[383015289,1756807498725,-480.0,0.00013972,2]
[383015290,1756807498750,-320.27,0.00013972,2]
[383015291,1756807498773,-521.63,0.00013972,2]
[383015292,1756807498796,-480.0,0.00013972,2]
[383015293,1756807498818,-937.55,0.00013972,2]
[383015294,1756807499223,289.09289668,0.00013972,2]
[383015295,1756807499313,50000.0,0.00013972,2]
[383015296,1756807499783,480.0,0.00013698,2]
[383015297,1756807500057,480.0,0.00013972,2]
[383015298,1756807500951,480.0,0.00013698,2]
[383015299,1756807501225,480.0,0.00013972,2]
[383015300,1756807503461,500.0,0.00013673,2]
[383015301,1756807504216,480.0,0.00013698,2]
[383015302,1756807504519,261.32,0.00013972,2]
[383015303,1756807506497,677.51,0.00013698,2]
[383015304,1756807506743,677.51,0.00013972,2]
[383015305,1756807507509,289.09289668,0.00013972,2]
[383015306,1756807508851,180.09513407,0.00013972,2]
[383015307,1756807511841,1109.08,0.00013698,2]
[383015308,1756807512107,1109.08,0.00013972,2]
[383015309,1756807514590,480.0,0.00013698,2]
[383015310,1756807514849,480.0,0.00013972,2]
[383015311,1756807516229,480.0,0.00013698,2]
[383015312,1756807516480,480.0,0.00013972,2]
[383015313,1756807517089,480.0,0.00013698,2]
[383015314,1756807517334,480.0,0.00013972,2]
[383015315,1756807519455,480.0,0.00013698,2]
[383015316,1756807519495,480.0,0.00013972,2]
[383015317,1756807521577,-679.36099989,0.00014009,2]
[383015318,1756807521608,-1076.74,0.00014018,2]
[383015319,1756807521632,-160.0,0.00014025,2]
[383015320,1756807521656,-160.0,0.00014025,2]
[383015321,1756807521679,-160.0,0.00014026,2]
[383015322,1756807521702,-160.0,0.00014026,2]
[383015323,1756807521724,-160.0,0.00014026,2]
[383015324,1756807521747,-846.21894513,0.00014026,2]
[383015325,1756807521770,-316.3878574,0.00014026,2]
[383015326,1756807521793,-217.47380718,0.00014026,2]
[383015327,1756807521816,-417.15472785,0.00014026,2]
[383015328,1756807521839,-160.0,0.00014026,2]
[383015329,1756807521862,-160.0,0.00014026,2]
[383015330,1756807521886,-530.22964562,0.00014026,2]
[383015331,1756807521910,-232.87008258,0.00014026,2]
[383015332,1756807521935,-11369.04596444,0.00014026,2]
[383015333,1756807521957,-3000.0,0.0001404,2]
[383015334,1756807521980,-4364.54451571,0.00014059,2]
[383015335,1756807522003,-679.36099989,0.00014146,2]
[383015336,1756807522025,-364.1013659,0.000142,2]
[383015337,1756807522047,-199.035676,0.000142,2]
[383015338,1756807522074,-160.2170531,0.000142,2]
[383015339,1756807522097,-583.0233772,0.000142,2]
[383015340,1756807522122,-155.8242449,0.000142,2]
[383015341,1756807522146,-583.0233772,0.000142,2]
[383015342,1756807522169,-582.7791983,0.000142,2]
[383015343,1756807522208,480.0,0.00013698,2]
[383015344,1756807522247,480.0,0.00013972,2]
[383015345,1756807523848,591.96021485,0.00013698,2]
[383015346,1756807528076,567.11,0.00013698,2]
[383015347,1756807528347,567.11,0.00013972,2]
[383015348,1756807528915,-39667.0800742,0.00014027,2]
[383015349,1756807528939,-1000.0,0.00014221,2]
[383015350,1756807528962,-1000.0,0.00014221,2]
[383015351,1756807528984,-619.78164513,0.00014221,2]
[383015352,1756807529007,-1000.0,0.00014221,2]
[383015353,1756807529031,-1000.0,0.00014221,2]
[383015354,1756807529060,-500.0,0.00014225,2]
[383015355,1756807529085,-500.0,0.00014225,2]
[383015356,1756807529109,-500.0,0.00014245,2]
[383015357,1756807529132,-151.0,0.00014246,2]
[383015358,1756807529155,-198.0,0.00014246,2]
[383015359,1756807529178,-198.0,0.00014246,2]
[383015360,1756807529201,-500.0,0.00014246,2]
[383015361,1756807529223,-151.0,0.00014246,2]
[383015362,1756807529245,-151.0,0.00014246,2]
[383015363,1756807529267,-151.0,0.00014246,2]
[383015364,1756807529289,-480.0,0.00014246,2]
[383015365,1756807529311,-480.0,0.00014246,2]
[383015366,1756807529334,-480.0,0.00014246,2]
[383015367,1756807529356,-480.0,0.00014246,2]
[383015368,1756807529378,-480.0,0.00014246,2]
[383015369,1756807529400,-480.0,0.00014246,2]
[383015370,1756807529422,-480.0,0.00014246,2]
[383015371,1756807529444,-480.0,0.00014246,2]
[383015372,1756807529467,-480.0,0.00014246,2]
[383015373,1756807529489,-480.0,0.00014246,2]
[383015374,1756807529512,-480.0,0.00014246,2]
[383015375,1756807529535,-480.0,0.00014246,2]
[383015376,1756807529557,-480.0,0.00014246,2]
[383015377,1756807529581,-480.0,0.00014246,2]
[383015378,1756807529605,-2010.07,0.00014246,2]
[383015379,1756807529628,-480.0,0.00014246,2]
[383015380,1756807529651,-480.0,0.00014246,2]
[383015381,1756807529673,-480.0,0.00014246,2]
[383015382,1756807529697,-480.0,0.00014246,2]
[383015383,1756807529722,-480.0,0.00014246,2]
[383015384,1756807529744,-480.0,0.00014246,2]
[383015385,1756807529768,-480.0,0.00014246,2]
[383015386,1756807529792,-480.0,0.00014246,2]
[383015387,1756807529815,-480.0,0.00014246,2]
[383015388,1756807529836,-480.0,0.00014246,2]
[383015389,1756807529860,-480.0,0.00014246,2]
[383015390,1756807529883,-480.0,0.00014246,2]
[383015391,1756807529906,-480.0,0.00014246,2]
[383015392,1756807529929,-480.0,0.00014246,2]
[383015393,1756807529952,-480.0,0.00014246,2]
[383015394,1756807529976,-480.0,0.00014246,2]
[383015395,1756807529998,-480.0,0.00014246,2]
[383015396,1756807530018,-480.0,0.00014246,2]
[383015397,1756807530035,-480.0,0.00014246,2]
[383015398,1756807530055,-480.0,0.00014246,2]
[383015399,1756807530078,-480.0,0.00014246,2]
[383015400,1756807530099,-480.0,0.00014246,2]
[383015401,1756807530117,-480.0,0.00014246,2]
[383015402,1756807530138,-480.0,0.00014246,2]
[383015403,1756807530157,-480.0,0.00014246,2]
[383015404,1756807530176,-480.0,0.00014246,2]
[383015405,1756807530196,-480.0,0.00014246,2]
[383015406,1756807530218,-480.0,0.00014246,2]
[383015407,1756807530239,-480.0,0.00014246,2]
[383015408,1756807530260,-480.0,0.00014246,2]
[383015409,1756807530280,-575.7,0.00014246,2]
[383015410,1756807530300,-480.0,0.00014246,2]
[383015411,1756807530319,-534.57,0.00014246,2]
[383015412,1756807530339,-289.09,0.00014246,2]
[383015413,1756807530362,-480.0,0.00014246,2]
[383015414,1756807530386,-480.0,0.00014246,2]
[383015415,1756807530407,-480.0,0.00014246,2]
[383015416,1756807530429,-480.0,0.00014246,2]
[383015417,1756807530588,-480.0,0.00014246,2]
[383015418,1756807530612,-480.0,0.00014246,2]
[383015419,1756807530635,-480.0,0.00014246,2]
[383015420,1756807530659,-2034.46,0.00014246,2]
[383015421,1756807530682,-480.0,0.00014246,2]
[383015422,1756807530705,-368.07199509,0.00014246,2]
[383015423,1756807530729,-480.0,0.00014246,2]
[383015424,1756807530752,-480.0,0.00014246,2]
[383015425,1756807530776,-480.0,0.00014246,2]
[383015426,1756807530800,-708.13,0.00014246,2]
[383015427,1756807530824,-480.0,0.00014246,2]
[383015428,1756807530848,-480.0,0.00014246,2]
[383015429,1756807530873,-480.0,0.00014246,2]
[383015430,1756807530897,-517.18,0.00014246,2]
[383015431,1756807530921,-480.0,0.00014246,2]
[383015432,1756807530946,-1283.8,0.00014246,2]
[383015433,1756807530971,-480.0,0.00014246,2]
[383015434,1756807530994,-480.0,0.00014246,2]
[383015435,1756807531022,-480.0,0.00014246,2]
[383015436,1756807531047,-480.0,0.00014246,2]
[383015437,1756807531079,-480.0,0.00014246,2]
[383015438,1756807531103,-480.0,0.00014246,2]
[383015439,1756807531129,-303.56,0.00014246,2]
[383015440,1756807531154,-480.0,0.00014246,2]
[383015441,1756807531177,-480.0,0.00014246,2]
[383015442,1756807531201,-480.0,0.00014246,2]
[383015443,1756807531224,-480.0,0.00014246,2]
[383015444,1756807531247,-561.79381313,0.00014246,2]
[383015445,1756807531270,-480.0,0.00014246,2]
[383015446,1756807531293,-471.20185063,0.00014246,2]
[383015447,1756807531317,-480.0,0.00014246,2]
[383015448,1756807531340,-480.0,0.00014246,2]
[383015449,1756807531364,-480.0,0.00014246,2]
[383015450,1756807531387,-239.12,0.00014246,2]
[383015451,1756807531411,-762.52,0.00014246,2]
[383015452,1756807531437,-480.0,0.00014246,2]
[383015453,1756807531460,-548.9,0.00014246,2]
[383015454,1756807531484,-480.0,0.00014246,2]
[383015455,1756807531508,-480.0,0.00014246,2]
[383015456,1756807531533,-480.0,0.00014246,2]
[383015457,1756807531558,-480.0,0.00014246,2]
[383015458,1756807531584,-937.55,0.00014246,2]
[383015459,1756807531610,-480.0,0.00014246,2]
[383015460,1756807531631,-480.0,0.00014246,2]
[383015461,1756807531655,-677.51,0.00014246,2]
[383015462,1756807531680,-1109.08,0.00014246,2]
[383015463,1756807531703,-480.0,0.00014246,2]
[383015464,1756807531729,-480.0,0.00014246,2]
[383015465,1756807531753,-480.0,0.00014246,2]
[383015466,1756807531776,-332.12,0.00014246,2]
[383015467,1756807531802,-567.11,0.00014246,2]
[383015468,1756807531826,-500.0,0.00014246,2]
[383015469,1756807531852,-975.0,0.00014375,2]
[383015470,1756807531875,-500.0,0.00014377,2]
[383015471,1756807531898,-2311.97,0.00014458,2]
[383015472,1756807531921,-632.0,0.00014481,2]
[383015473,1756807531943,-2153.0,0.00014481,2]
[383015474,1756807531966,-151.0,0.00014481,2]
[383015475,1756807531989,-151.0,0.00014481,2]
[383015476,1756807532011,-161.0,0.00014493,2]
[383015477,1756807532033,-161.0,0.00014493,2]
[383015478,1756807532058,-161.0,0.00014493,2]
[383015479,1756807532085,-170.70383155,0.00014493,2]
[383015480,1756807532111,-921.15494095,0.000145,2]
[383015481,1756807532271,480.0,0.00013698,2]
[383015482,1756807532316,480.0,0.00013972,2]
[383015483,1756807532530,480.0,0.00013698,2]
[383015484,1756807532561,480.0,0.00013698,2]
[383015485,1756807532600,480.0,0.00013972,2]
[383015486,1756807532634,480.0,0.00013972,2]
[383015487,1756807532669,480.0,0.00014246,2]
[383015488,1756807532718,445.41,0.00014246,2]
[383015489,1756807532835,480.0,0.00013698,2]
[383015490,1756807532874,480.0,0.00013972,2]
[383015491,1756807532922,480.0,0.00014246,2]
[383015492,1756807533131,480.0,0.00013698,2]
[383015493,1756807533380,480.0,0.00013972,2]
[383015494,1756807533440,480.0,0.00013698,2]
[383015495,1756807534069,480.0,0.00013972,2]
[383015496,1756807534332,480.0,0.00014246,2]
[383015497,1756807535108,480.0,0.00013698,2]
[383015498,1756807535305,480.0,0.00013698,2]
[383015499,1756807535337,480.0,0.00013972,2]
[383015500,1756807535579,480.0,0.00014246,2]
[383015501,1756807535610,480.0,0.00013972,2]
[383015502,1756807535995,480.0,0.00013698,2]
[383015503,1756807536271,480.0,0.00013972,2]
[383015504,1756807536905,480.0,0.00013698,2]
[383015505,1756807537265,480.0,0.00013972,2]
[383015506,1756807537408,480.0,0.00014246,2]
[383015507,1756807537567,650.79,0.00013698,2]
[383015508,1756807537761,480.0,0.00013698,2]
[383015509,1756807537995,480.0,0.00013972,2]
[383015510,1756807538187,650.79,0.00013972,2]
[383015511,1756807538253,480.0,0.00014246,2]
[383015512,1756807538471,650.79,0.00014246,2]
[383015513,1756807540648,480.0,0.00013698,2]
[383015514,1756807540904,480.0,0.00013972,2]
[383015515,1756807541622,502.07,0.00013698,2]
[383015516,1756807541860,502.07,0.00013972,2]
[383015517,1756807542111,502.07,0.00014246,2]
[383015518,1756807542957,480.0,0.00013698,2]
[383015519,1756807543187,480.0,0.00013972,2]
[383015520,1756807543434,480.0,0.00014246,2]
[383015523,1756807546086,480.0,0.00013698,2]
[383015524,1756807546396,480.0,0.00013972,2]
[383015525,1756807546646,480.0,0.00014246,2]
[383015526,1756807547378,637.03,0.00013698,2]
[383015527,1756807547614,637.03,0.00013972,2]
[383015528,1756807547799,-150.0,0.00014519,2]
[383015529,1756807547822,-150.285,0.00014519,2]
[383015530,1756807547844,-150.0,0.00014519,2]
[383015531,1756807547866,-150.15,0.00014519,2]
[383015532,1756807547888,-175.407,0.00014519,2]
[383015533,1756807547912,-245.0,0.0001452,2]
[383015534,1756807547936,-500.0,0.0001452,2]
[383015535,1756807547959,-151.0,0.0001452,2]
[383015536,1756807547982,-151.0,0.0001452,2]
[383015537,1756807548005,-151.0,0.0001452,2]
[383015538,1756807548027,-480.0,0.0001452,2]
[383015539,1756807548050,-480.0,0.0001452,2]
[383015540,1756807548075,-480.0,0.0001452,2]
[383015541,1756807548100,-480.0,0.0001452,2]
[383015542,1756807548125,-527.69011729,0.0001452,2]
[383015543,1756807548150,-480.0,0.0001452,2]
[383015544,1756807548174,-480.0,0.0001452,2]
[383015545,1756807548198,-480.0,0.0001452,2]
[383015546,1756807548224,-480.0,0.0001452,2]
[383015547,1756807548252,-480.0,0.0001452,2]
[383015548,1756807548279,-480.0,0.0001452,2]
[383015549,1756807548303,-2010.07,0.0001452,2]
[383015550,1756807548328,-480.0,0.0001452,2]
[383015551,1756807548352,-480.0,0.0001452,2]
[383015552,1756807548375,-480.0,0.0001452,2]
[383015553,1756807548399,-480.0,0.0001452,2]
[383015554,1756807548422,-480.0,0.0001452,2]
[383015555,1756807548446,-480.0,0.0001452,2]
[383015556,1756807548470,-480.0,0.0001452,2]
[383015557,1756807548493,-480.0,0.0001452,2]
[383015558,1756807548663,-480.0,0.0001452,2]
[383015559,1756807548691,-480.0,0.0001452,2]
[383015560,1756807548716,-480.0,0.0001452,2]
[383015561,1756807548740,-480.0,0.0001452,2]
[383015562,1756807548765,-173.82743753,0.0001452,2]
[383015563,1756807548787,-480.0,0.0001452,2]
[383015564,1756807548812,-480.0,0.0001452,2]
[383015565,1756807548837,-480.0,0.0001452,2]
[383015566,1756807548862,-480.0,0.0001452,2]
[383015567,1756807548888,-480.0,0.0001452,2]
[383015568,1756807548912,-480.0,0.0001452,2]
[383015569,1756807548936,-480.0,0.0001452,2]
[383015570,1756807548960,-480.0,0.0001452,2]
[383015571,1756807548985,-480.0,0.0001452,2]
[383015572,1756807549008,-480.0,0.0001452,2]
[383015573,1756807549032,-480.0,0.0001452,2]
[383015574,1756807549055,-480.0,0.0001452,2]
[383015575,1756807549080,-480.0,0.0001452,2]
[383015576,1756807549105,-480.0,0.0001452,2]
[383015577,1756807549131,-480.0,0.0001452,2]
[383015578,1756807549155,-480.0,0.0001452,2]
[383015579,1756807549179,-480.0,0.0001452,2]
[383015580,1756807549206,-2034.46,0.0001452,2]
[383015581,1756807549235,-480.0,0.0001452,2]
[383015582,1756807549259,-480.0,0.0001452,2]
[383015583,1756807549282,-480.0,0.0001452,2]
[383015584,1756807549306,-480.0,0.0001452,2]
[383015585,1756807549333,-708.13,0.0001452,2]
[383015586,1756807549356,-480.0,0.0001452,2]
[383015587,1756807549379,-480.0,0.0001452,2]
[383015588,1756807549402,-480.0,0.0001452,2]
[383015589,1756807549425,-480.0,0.0001452,2]
[383015590,1756807549449,-1283.8,0.0001452,2]
[383015591,1756807549473,-480.0,0.0001452,2]
[383015592,1756807549499,-480.0,0.0001452,2]
[383015593,1756807549523,-480.0,0.0001452,2]
[383015594,1756807549545,-480.0,0.0001452,2]
[383015595,1756807549568,-480.0,0.0001452,2]
[383015596,1756807549592,-480.0,0.0001452,2]
[383015597,1756807549614,-243.97983535,0.0001452,2]